[Event "43rd Guernsey Festival 2017"]
[Site "Vale"]
[Date "2017.10.16"]
[Round "2"]
[White "Dennis, Nigel W"]
[Black "Collins, Alan"]
[Result "1/2-1/2"]
[ECO "B07"]
[WhiteElo "1785"]
[BlackElo "1700"]
[Annotator "NA RC"]
[PlyCount "41"]
[EventDate "2017.??.??"]
[EventType "swiss"]
[EventCountry "GCI"]
[SourceTitle "playchess.com"]
[Source "ChessBase"]
[SourceQuality "1"]
[TimeControl "40/6000+30:2400+30"]

1. e4 {[%emt 0:00:00]} d6 {[%emt 0:00:07]} 2. c4 {[%emt 0:00:00]} Nf6 {[%emt 0:00:40]} 3. Nc3 {[%emt 0:00:07]} e5 {[%emt 0:01:09]} 4. Nf3 {[%emt 0:00:40]} Bg4 {[%emt 0:01:53]} 5. h3 {[%emt 0:00:55]} Bh5 {[%emt 0:00:50]} 6. Be2 {[%emt 0:01:01]} Bxf3 {[%emt 0:06:12]} 7. Bxf3 {[%emt 0:00:56]} Nc6 {[%emt 0:01:40]} 8. d3 {[%emt 0:01:15]} Be7 {[%emt 0:01:51]} 9. Be3 {[%emt 0:00:46]} Nd4 {[%emt 0:04:50]} 10. O-O {[%emt 0:01:07]} O-O {[%emt 0:01:28]} 11. b4 {[%emt 0:05:02]} a5 {[%emt 0:17:44]} 12. b5 {[%emt 0:01:29]} Nxf3+ {[%emt 0:01:59]} 13. Qxf3 {[%emt 0:05:05]} b6 {[%emt 0:00:19]} 14. a4 {[%emt 0:01:31]} Qd7 {[%emt 0:22:27]} 15. Nd5 {[%emt 0:07:41]} Nxd5 {[%emt 0:04:57]} 16. cxd5 {[%emt 0:00:20]} Rae8 {[%emt 0:00:19]} 17. Rac1 {[%emt 0:05:24]} f5 {[%emt 0:01:41]} 18. exf5 {[%emt 0:00:44]} Rxf5 {[%emt 0:00:18]} 19. Rxc7 {[%emt 0:04:14]} Qxc7 {[%emt 0:13:03]} 20. Qxf5 {[%emt 0:00:10]} Qc2 {[%emt 0:01:48]} 21. Qe4 {[%emt 0:04:06]} 1/2-1/2

[Event "43rd Guernsey Festival 2017"]
[Site "Vale"]
[Date "2017.10.16"]
[Round "2"]
[White "Stanners, Michael J"]
[Black "Ruigrok, Jacques"]
[Result "1/2-1/2"]
[ECO "A47"]
[WhiteElo "1761"]
[BlackElo "1679"]
[Annotator "NA RC"]
[PlyCount "52"]
[EventDate "2017.??.??"]
[EventType "swiss"]
[EventCountry "GCI"]
[SourceTitle "playchess.com"]
[Source "ChessBase"]
[SourceQuality "1"]
[TimeControl "40/6000+30:2400+30"]

1. d4 {[%emt 0:00:56]} Nf6 {[%emt 0:00:43]} 2. Nf3 {[%emt 0:00:08]} e6 {[%emt 0:00:32]} 3. e3 {[%emt 0:00:21]} b6 {[%emt 0:01:31]} 4. Bd3 {[%emt 0:00:12]} Bb7 {[%emt 0:00:42]} 5. Nbd2 {[%emt 0:00:14]} d6 {[%emt 0:01:56]} 6. O-O {[%emt 0:00:09]} Be7 {[%emt 0:02:16]} 7. Qe2 {[%emt 0:00:16]} Nbd7 {[%emt 0:01:41]} 8. Re1 {[%emt 0:00:21]} O-O {[%emt 0:01:24]} 9. c3 {[%emt 0:01:49]} Re8 {[%emt 0:04:28]} 10. e4 {[%emt 0:01:38]} e5 {[%emt 0:01:14]} 11. d5 {[%emt 0:05:08]} a5 {[%emt 0:05:53]} 12. b4 {[%emt 0:07:03]} axb4 {[%emt 0:09:21]} 13. cxb4 {[%emt 0:00:06]} c5 {[%emt 0:02:27]} 14. dxc6 {[%emt 0:03:40]} Bxc6 {[%emt 0:00:55]} 15. Bb5 {[%emt 0:05:45]} Bxb5 {[%emt 0:04:32]} 16. Qxb5 {[%emt 0:00:12]} Nf8 {[%emt 0:02:28]} 17. Nf1 {[%emt 0:07:27]} Ne6 {[%emt 0:01:56]} 18. Ng3 {[%emt 0:02:46]} g6 {[%emt 0:01:40]} 19. Be3 {[%emt 0:01:49]} Qd7 {[%emt 0:11:56]} 20. Qd3 {[%emt 0:10:33]} b5 {[%emt 0:05:12]} 21. Red1 {[%emt 0:03:22]} Qb7 {[%emt 0:01:31]} 22. Nd2 {[%emt 0:08:34]} d5 {[%emt 0:03:14]} 23. exd5 {[%emt 0:08:31]} Nxd5 {[%emt 0:01:06]} 24. Qe4 {[%emt 0:05:00]} Rab8 {[%emt 0:04:34]} 25. Rac1 {[%emt 0:10:34]} Nxb4 26. Ra1 Nc6 1/2-1/2

[Event "43rd Guernsey Festival 2017"]
[Site "Vale"]
[Date "2017.10.16"]
[Round "2"]
[White "Kirk, Matthew"]
[Black "Turner, David J"]
[Result "0-1"]
[ECO "A41"]
[WhiteElo "1721"]
[BlackElo "1774"]
[Annotator "NA RC"]
[PlyCount "66"]
[EventDate "2017.??.??"]
[EventType "swiss"]
[EventCountry "GCI"]
[SourceTitle "playchess.com"]
[Source "ChessBase"]
[SourceQuality "1"]
[TimeControl "40/6000+30:2400+30"]

1. d4 {[%emt 0:00:04]} d6 {[%emt 0:00:23]} 2. Nf3 {[%emt 0:00:37]} Nf6 {[%emt 0:00:19]} 3. c4 {[%emt 0:00:36]} c5 {[%emt 0:01:24]} 4. d5 {[%emt 0:00:10]} b5 {[%emt 0:01:07]} 5. Nbd2 {[%emt 0:01:14] LiveBook: 6 Games} g6 {[%emt 0:03:30]} 6. e4 {[%emt 0:00:38]} Nbd7 {[%emt 0:01:51]} 7. cxb5 {[%emt 0:00:41]} a6 {[%emt 0:00:06]} 8. bxa6 {[%emt 0:01:16]} Bxa6 {[%emt 0:00:06]} ({Better is} 8... Bg7 $14) 9. Bxa6 {[%emt 0:00:18]} Rxa6 {[%emt 0:00:04]} 10. O-O $14 {[%emt 0:00:28]} Qa8 {[%emt 0:00:48]} 11. a3 {[%emt 0:01:42]} Bg7 {[%emt 0:00:09]} 12. Qc2 {[%emt 0:00:50]} O-O {[%emt 0:00:34]} 13. Nc4 {[%emt 0:01:07]} Rb8 {[%emt 0:01:53]} 14. Rb1 {[%emt 0:05:20]} Nb6 {[%emt 0:06:30]} 15. Nfd2 {[%emt 0:04:25]} Nfd7 {[%emt 0:01:27]} 16. b4 {[%emt 0:03:14]} cxb4 {[%emt 0:17:23]} 17. axb4 {[%emt 0:00:14]} Ne5 {[%emt 0:09:45]} 18. Na5 {[%emt 0:05:59]} Kf8 {[%emt 0:01:24]} 19. Nc6 {[%emt 0:06:11]} Rc8 {[%emt 0:03:43]} 20. b5 {[%emt 0:00:16]} Ra2 {[%emt 0:00:55]} 21. Qb3 {[%emt 0:00:55]} Ned7 {[%emt 0:04:10]} 22. Qh3 {[%emt 0:05:13]} h5 {[%emt 0:04:43]} 23. Nc4 {[%emt 0:03:50]} Qb7 {[%emt 0:11:17]} 24. Nxb6 {[%emt 0:00:37]} Nxb6 {[%emt 0:00:13]} 25. Be3 {[%emt 0:02:33]} Nc4 {[%emt 0:03:37]} 26. Bd4 {[%emt 0:01:40]} Bxd4 {[%emt 0:06:45]} 27. Nxd4 {[%emt 0:02:30]} Rc5 {[%emt 0:03:12]} 28. Ra1 {[%emt 0:01:36]} Qa8 {[%emt 0:03:57]} 29. Rxa2 {[%emt 0:00:26]} Qxa2 {[%emt 0:00:08]} 30. Nc6 {[%emt 0:02:32]} Nd2 {[%emt 0:09:52]} 31. Re1 {[%emt 0:07:24]} Rxb5 {[%emt 0:05:36]} 32. Qd7 {[%emt 0:00:14]} Rb1 {[%emt 0:00:40]} 33. Qxe7+ {[%emt 0:02:18]} Kg7 {[%emt 0:01:23]} 0-1

[Event "43rd Guernsey Festival 2017"]
[Site "Vale"]
[Date "2017.10.16"]
[Round "2"]
[White "Nielsen, Jorgen Holmstrom"]
[Black "Goris-Schouwstra, Adry"]
[Result "1/2-1/2"]
[ECO "A00"]
[WhiteElo "1688"]
[BlackElo "1754"]
[Annotator "NA RC"]
[PlyCount "41"]
[EventDate "2017.??.??"]
[EventType "swiss"]
[EventCountry "GCI"]
[SourceTitle "playchess.com"]
[Source "ChessBase"]
[SourceQuality "1"]
[TimeControl "40/6000+30:2400+30"]

1. Nc3 {[%emt 0:00:00]} d5 {[%emt 0:00:30]} 2. e4 {[%emt 0:00:00]} d4 {[%emt 0:01:21]} 3. Nce2 {[%emt 0:00:02]} c5 {[%emt 0:01:08]} 4. Ng3 {[%emt 0:00:05]} Nc6 {[%emt 0:01:54]} 5. Bc4 {[%emt 0:00:58]} e6 {[%emt 0:04:43]} 6. d3 {[%emt 0:01:11]} a6 {[%emt 0:00:26]} 7. Bd2 {[%emt 0:02:59]} b5 {[%emt 0:03:33]} 8. Bb3 {[%emt 0:00:03]} Na5 {[%emt 0:02:31]} 9. Nf3 {[%emt 0:00:45]} Nf6 {[%emt 0:08:38]} 10. O-O {[%emt 0:00:37]} Be7 {[%emt 0:00:59]} 11. Ne5 {[%emt 0:04:29]} Nxb3 {[%emt 0:02:18]} 12. axb3 {[%emt 0:00:47]} Bb7 {[%emt 0:02:22]} 13. f4 {[%emt 0:02:30]} h5 {[%emt 0:06:46]} 14. h3 {[%emt 0:06:16]} h4 {[%emt 0:02:09]} 15. Nh1 {[%emt 0:00:40]} Nd7 {[%emt 0:02:29]} 16. Nxd7 {[%emt 0:05:42]} Qxd7 {[%emt 0:00:15]} 17. Nf2 {[%emt 0:00:42]} Qc6 {[%emt 0:08:06]} 18. Ng4 {[%emt 0:07:05]} f6 {[%emt 0:01:19]} 19. Qe2 {[%emt 0:09:08]} Rc8 {[%emt 0:03:33]} 20. Nh2 {[%emt 0:01:32]} O-O {[%emt 0:04:41]} 21. Nf3 {[%emt 0:01:02]} 1/2-1/2

[Event "43rd Guernsey Festival 2017"]
[Site "Vale"]
[Date "2017.10.16"]
[Round "2"]
[White "Rowe, Oliver"]
[Black "Purdon, Colin"]
[Result "0-1"]
[ECO "A47"]
[WhiteElo "1634"]
[BlackElo "2047"]
[Annotator "NA RC"]
[PlyCount "60"]
[EventDate "2017.??.??"]
[EventType "swiss"]
[EventCountry "GCI"]
[SourceTitle "playchess.com"]
[Source "ChessBase"]
[SourceQuality "1"]
[TimeControl "40/6000+30:2400+30"]

{[%evp 11,60,0,4,0,0,0,9,4,32,24,40,33,29,0,12,20,22,15,38,22,31,0,0,0,6,6,20,0,58,63,71,59,58,41,57,-23,0,-534,-510,-473,-479,-533,-548,-719,-783,-812,-741,-630,-746,-29984,-29973]} 1. d4 {[%emt 0:00:00]} Nf6 {[%emt 0:00:10]} 2. Bf4 {[%emt 0:00:00]} c5 {[%emt 0:00:24]} 3. e3 {[%emt 0:00:00]} e6 {[%emt 0:00:27]} 4. c3 {[%emt 0:00:19]} b6 {[%emt 0:01:27]} 5. Nf3 {[%emt 0:03:48]} Bb7 {[%emt 0:00:44]} 6. Be2 {[%emt 0:04:36]} Be7 {[%emt 0:01:09] A47: 1 d4 Nf6 2 Nf3 b6: Torre, London and Colle Systems} 7. h3 {[%emt 0:03:22]} O-O {[%emt 0:02:14]} 8. O-O {[%emt 0:01:44]} d6 {[%emt 0:06:59]} 9. Nbd2 {[%emt 0:09:57]} (9. a4 a6 10. Bh2 Nbd7 11. Qb3 Qc7 12. Na3 Bc6 13. Rfd1 Rfd8 {0-1 (90) Kamsky,G (2762)-Ivanchuk,V (2766) Beijing 2012}) 9... cxd4 {[%emt 0:10:19] LiveBook: 4 Games} 10. cxd4 {[%emt 0:05:34]} Nd5 {[%emt 0:01:27]} 11. Bh2 {[%emt 0:04:15]} f5 {[%emt 0:02:09]} 12. Ne1 $146 {[%emt 0:09:55]} ({Predecessor:} 12. Rc1 Nd7 13. Qb3 N7f6 14. Ng5 {0-1 (42) Tessedik,K (1930)-Goczo,M (2262) Szombathely 2003}) 12... Nf6 {[%emt 0:19:51]} 13. Qb3 {[%emt 0:05:27]} Bd5 {[%emt 0:02:19]} 14. Bc4 {[%emt 0:00:33]} Nc6 {[%emt 0:00:46]} 15. Bxd5 {[%emt 0:02:03]} Nxd5 {[%emt 0:02:24]} 16. Nc4 {[%emt 0:01:30]} Qd7 {[%emt 0:05:05]} 17. Nd3 {[%emt 0:06:26]} Kh8 {[%emt 0:08:47]} 18. Rfc1 {[%emt 0:11:43]} Rac8 {[%emt 0:07:43]} 19. a4 {[%emt 0:10:50]} f4 {[%emt 0:04:03]} ({Black should try} 19... g5 $11) 20. Nxf4 {[%emt 0:09:40]} Nxf4 {[%emt 0:04:23]} 21. Bxf4 {[%emt 0:00:16]} Nxd4 {[%emt 0:02:51]} 22. Qd3 {[%emt 0:03:16]} Nf5 {[%emt 0:02:50]} 23. g4 {[%emt 0:02:10]} (23. e4 $14 Nd4 24. Qxd4 Rxf4 25. Ne5) 23... Nh4 {[%emt 0:00:40]} 24. Qd1 $2 {[%emt 0:05:03]} (24. Nd2 $15) 24... Qb7 {[%emt 0:02:05]} 25. Kf1 {[%emt 0:02:25]} Qg2+ {[%emt 0:01:34]} 26. Ke2 {[%emt 0:00:39]} Qxh3 {[%emt 0:01:22]} 27. Nxd6 {[%emt 0:01:06]} Qxg4+ {[%emt 0:01:51]} 28. Kf1 {[%emt 0:00:37]} Qg2+ {[%emt 0:01:25]} 29. Ke2 {[%emt 0:00:16]} Rcd8 {[%emt 0:01:42]} 30. Nc8 {[%emt 0:04:52]} Rxd1 0-1

[Event "43rd Guernsey Festival 2017"]
[Site "Vale"]
[Date "2017.10.17"]
[Round "3"]
[White "Dilleigh, Stephen P"]
[Black "Van Dijk, Bram"]
[Result "1-0"]
[ECO "D16"]
[WhiteElo "2063"]
[BlackElo "1999"]
[Annotator "NA RC"]
[PlyCount "101"]
[EventDate "2017.??.??"]
[EventType "swiss"]
[EventCountry "GCI"]
[SourceTitle "playchess.com"]
[Source "ChessBase"]
[SourceQuality "1"]
[TimeControl "40/6000+30:2400+30"]

{[%evp 8,101,28,32,61,63,68,84,57,56,84,59,69,63,69,50,53,62,32767,76,82,58,64,41,31,28,52,32,50,46,45,52,82,62,84,58,247,68,52,64,77,78,83,81,83,53,90,67,93,98,97,80,112,118,106,91,186,168,190,181,381,343,389,400,483,217,225,221,247,203,1083,447,390,485,495,531,437,498,723,592,693,435,476,429,388,522,475,464,574,647,688,991,820,462,897,5052]} 1. Nf3 {[%emt 0:00:00]} d5 {[%emt 0:01:42]} 2. d4 {[%emt 0:00:00]} c6 {[%emt 0:00:14]} 3. c4 {[%emt 0:00:00]} Nf6 {[%emt 0:00:07]} 4. Nc3 {[%emt 0:00:07]} dxc4 {[%emt 0:00:21]} 5. a4 {[%emt 0:00:08]} Bg4 {[%emt 0:00:24]} 6. Ne5 $1 {[%emt 0:00:15]} Bh5 {[%emt 0:00:41] [#]} 7. f3 $1 {[%emt 0:00:28]} Nfd7 {[%emt 0:13:31]} 8. Nxc4 {[%emt 0:00:34] D16: Slav Defence: 5 a4: Lines with 5...Bg4 and 5...Na6} e6 {[%emt 0:01:11]} (8... e5 9. Be3 Na6 10. g3 f6 11. dxe5 Nxe5 12. Qxd8+ Kxd8 13. Nxe5 fxe5 14. Bh3 Kc7 15. Rc1 b6 16. Bf5 Bf7 17. Kf2 {1-0 (39) Aronian,L (2781)-Jobava,B (2668) Reykjavik 2015}) 9. e4 {[%emt 0:04:55]} Bb4 {[%emt 0:03:23]} 10. Be3 {[%emt 0:06:29]} Qe7 $146 {[%emt 0:15:41]} ({Predecessor:} 10... a5 11. Be2 Qe7 12. O-O O-O 13. Na2 f6 14. Nxb4 axb4 15. Qd2 Bf7 {1-0 (37) Demina,J (2368)-Ignatiev,A (2302) St Petersburg 2000}) 11. Be2 {[%emt 0:09:27]} Nb6 {[%emt 0:09:58]} 12. O-O {[%emt 0:08:59]} N8d7 {[%emt 0:00:32]} 13. a5 {[%emt 0:05:33]} Nxc4 {[%emt 0:01:11]} 14. Bxc4 {[%emt 0:00:14]} O-O {[%emt 0:02:09]} 15. Qe2 {[%emt 0:12:06]} Rac8 {[%emt 0:11:00]} 16. Rfd1 {[%emt 0:07:27]} Nf6 {[%emt 0:07:48]} 17. Qf2 {[%emt 0:06:37]} Rfd8 {[%emt 0:02:20]} 18. a6 {[%emt 0:04:54]} b6 {[%emt 0:01:37]} 19. Na2 {[%emt 0:04:47]} Ne8 {[%emt 0:02:56]} 20. Nxb4 {[%emt 0:01:06]} Qxb4 {[%emt 0:00:27]} 21. Bf1 {[%emt 0:01:50]} Nd6 $2 {[%emt 0:10:30] [#]} ({Better is} 21... f6 $14) 22. Qd2 $2 {[%emt 0:06:44]} (22. Qh4 $1 $18) 22... Qxd2 {[%emt 0:01:37]} 23. Rxd2 {[%emt 0:00:10]} f6 {[%emt 0:01:51]} 24. Rc1 {[%emt 0:02:43]} Be8 {[%emt 0:04:38]} 25. b4 {[%emt 0:01:28]} h6 {[%emt 0:00:44]} 26. g3 {[%emt 0:03:40]} Kf7 {[%emt 0:00:28]} 27. Rdc2 {[%emt 0:03:44]} Ke7 {[%emt 0:04:55]} 28. Kf2 {[%emt 0:01:06]} Bd7 {[%emt 0:00:46]} 29. Bd3 {[%emt 0:03:47]} e5 {[%emt 0:01:43]} 30. dxe5 {[%emt 0:01:19]} fxe5 {[%emt 0:00:05]} 31. Ke2 {[%emt 0:00:40]} Nb5 {[%emt 0:03:38]} (31... g5 $16) 32. Bxb5 $1 {[%emt 0:03:18]} cxb5 {[%emt 0:00:06]} 33. Rc7 {[%emt 0:00:43]} Ra8 $2 {[%emt 0:04:21]} (33... Rxc7 $16 {keeps fighting.} 34. Rxc7 Ra8) 34. Rd1 {[%emt 0:01:44]} Ke6 {[%emt 0:02:38]} 35. Rd2 {[%emt 0:01:54]} g5 {[%emt 0:00:12]} 36. f4 {[%emt 0:02:18]} (36. h4 $142) 36... gxf4 {[%emt 0:01:36]} 37. gxf4 {[%emt 0:00:06]} exf4 {[%emt 0:00:52]} 38. Bxf4 {[%emt 0:00:16]} Rac8 $2 {[%emt 0:00:01]} (38... Be8 39. Rxd8 (39. Bxh6 Rdc8 $16) 39... Rxd8 40. Rxa7 Rd4) 39. Rxa7 {[%emt 0:03:51]} (39. Rd6+ $142 Ke7 {[#]} 40. Rdxd7+ $1 {[%mdl 512]} Rxd7 41. Rxc8) 39... Bc6 {[%emt 0:00:48]} 40. Rxd8 {[%emt 0:02:41]} Rxd8 {[%emt 0:40:06]} 41. Ke3 {[%emt 0:04:31]} h5 {[%emt 0:00:00]} 42. Rh7 {[%emt 0:02:52]} Rd1 {[%emt 0:00:00]} 43. Bg3 {[%emt 0:01:09]} Rc1 {[%emt 0:00:00]} 44. Rh6+ {[%emt 0:04:19]} Kd7 {[%emt 0:00:00]} 45. a7 {[%emt 0:03:58]} Ba8 {[%emt 0:00:00]} 46. Rh8 {[%emt 0:07:12]} Rc8 {[%emt 0:00:00]} 47. Rh7+ {[%emt 0:03:32]} Ke6 {[%emt 0:00:00]} 48. Rxh5 {[%emt 0:01:06]} Rc3+ {[%emt 0:00:00]} 49. Kf4 {[%emt 0:01:44]} Rc4 {[%emt 0:00:39]} 50. Re5+ {[%emt 0:03:28]} Kf6 {[%emt 0:00:33]} (50... Kd7 $142 51. h4 Rc8) 51. Re8 $18 {[%emt 0:01:14]} 1-0

[Event "43rd Guernsey Festival 2017"]
[Site "Vale"]
[Date "2017.10.17"]
[Round "3"]
[White "Sielicki, Tomasz"]
[Black "Hoogland, Dirk"]
[Result "0-1"]
[ECO "D02"]
[WhiteElo "1997"]
[BlackElo "2098"]
[Annotator "NA RC"]
[PlyCount "74"]
[EventDate "2017.??.??"]
[EventType "swiss"]
[EventCountry "GCI"]
[SourceTitle "playchess.com"]
[Source "ChessBase"]
[SourceQuality "1"]
[TimeControl "40/6000+30:2400+30"]

{[%evp 8,73,17,6,6,-6,-3,-2,7,-20,4,6,0,-37,-43,-48,-39,-72,0,-15,12,0,68,70,67,73,58,59,67,47,45,-9,-9,-27,69,0,0,-264,-55,-278,-291,-287,-243,-249,-183,-194,-185,-206,-163,-814,-894,-837,-872,-943,-912,-954,-945,-909,-1082,-1138,-977,-29990,-29991,-29991,-29992,-29998,-29999,-29999]} 1. d4 {[%emt 0:00:00]} Nf6 {[%emt 0:00:06]} 2. Bf4 {[%emt 0:00:00]} e6 {[%emt 0:01:05]} 3. Nf3 {[%emt 0:00:00]} b6 {[%emt 0:01:08]} 4. e3 {[%emt 0:01:08]} d5 {[%emt 0:02:11]} 5. Nbd2 {[%emt 0:01:18]} Bd6 {[%emt 0:00:30]} 6. Bg3 {[%emt 0:00:47]} O-O {[%emt 0:00:42]} 7. Bd3 {[%emt 0:01:43]} c5 {[%emt 0:00:25] D02: 1 d4 d5 2 Nf3 sidelines, including 2...Nf6 3 g3 and 2...Nf6 3 Bf4} 8. c3 {[%emt 0:00:20]} a5 {[%emt 0:03:37]} (8... Ba6 9. Bxa6 Nxa6 10. Qe2 Nc7 11. Ne5 cxd4 12. cxd4 Ne4 13. Nd3 Qe7 14. Bxd6 Qxd6 {½-½ (30) Iturrizaga Bonelli,E (2652)-Adams,M (2751) Caleta 2017}) 9. Ne5 {[%emt 0:03:48]} Ba6 {[%emt 0:01:28]} 10. Bc2 {[%emt 0:06:20]} Qc7 {[%emt 0:03:06]} 11. f4 {[%emt 0:02:48]} Nbd7 {[%emt 0:04:04]} 12. Bh4 $146 {[%emt 0:04:35]} ({Predecessor:} 12. Ndf3 cxd4 13. exd4 Ne4 14. Bxe4 dxe4 {0-1 (32) Shapfiullin,R (1865)-Kluev,V (2081) Nizhny Novgorod 2015}) 12... Rac8 {[%emt 0:03:31]} (12... cxd4 $17 13. cxd4 Rac8) 13. Qf3 {[%emt 0:14:46]} cxd4 {[%emt 0:11:47]} 14. exd4 {[%emt 0:00:27]} Ne4 {[%emt 0:05:52]} (14... Ne8 $11) 15. Nxe4 {[%emt 0:02:26]} dxe4 {[%emt 0:00:11]} 16. Qxe4 {[%emt 0:05:27]} f5 {[%emt 0:00:58]} 17. Qf3 {[%emt 0:08:09]} Nf6 {[%emt 0:08:04]} 18. Bb3 {[%emt 0:06:09]} Rce8 {[%emt 0:04:21]} 19. O-O-O {[%emt 0:06:25]} Bb7 {[%emt 0:03:37]} 20. Qe2 {[%emt 0:04:49]} Ne4 {[%emt 0:01:44]} ({Black should try} 20... Nd5 $15) 21. Ba4 {[%emt 0:12:39]} (21. Be1 $14) 21... Rc8 {[%emt 0:14:08]} 22. Bc2 $2 {[%emt 0:09:16] [#]} (22. Kb1 $11) 22... Qxc3 $2 {[%emt 0:16:51]} ({Better is} 22... Nxc3 $1 $19 23. bxc3 Qxc3) 23. Rd3 $2 {[%emt 0:07:25]} ({Not} 23. Qxe4 $2 Ba3 $19) (23. Kb1 $17 {was worth a try.} Bxe5 24. dxe5) 23... Qc7 {[%emt 0:00:37]} 24. Kb1 {[%emt 0:02:00]} Ba6 {[%emt 0:00:21]} 25. Bb3 {[%emt 0:01:58]} Bxd3+ {[%emt 0:02:04]} 26. Qxd3 {[%emt 0:00:12]} Rfe8 {[%emt 0:01:35]} 27. g4 {[%emt 0:00:38]} Bxe5 {[%emt 0:07:03]} 28. gxf5 $2 {[%emt 0:00:29]} (28. fxe5 Kh8 29. Rd1) 28... Bxf4 {[%emt 0:01:35]} 29. a3 {[%emt 0:02:00]} Nd2+ {[%emt 0:00:22]} 30. Ka1 {[%emt 0:01:12]} Nxb3+ {[%emt 0:00:22]} 31. Qxb3 {[%emt 0:00:04]} Qc6 {[%emt 0:01:42]} 32. Rf1 {[%emt 0:00:37]} a4 {[%emt 0:00:39]} 33. Qd3 {[%emt 0:02:07]} Qg2 {[%emt 0:02:21]} 34. Rxf4 {[%emt 0:02:47]} Rc1+ {[%emt 0:00:07]} 35. Ka2 {[%emt 0:00:03]} Qg1 {[%emt 0:00:09]} 36. b4 {[%emt 0:00:33]} Ra1+ {[%emt 0:00:07]} 37. Kb2 {[%emt 0:00:08]} Qc1# {[%emt 0:00:07] Qc4} 0-1

[Event "43rd Guernsey Festival 2017"]
[Site "Vale"]
[Date "2017.10.17"]
[Round "3"]
[White "Dijksterhuis, Rolf"]
[Black "Heppell, Ian N"]
[Result "1/2-1/2"]
[ECO "C41"]
[WhiteElo "1955"]
[BlackElo "2034"]
[Annotator "NA RC"]
[PlyCount "54"]
[EventDate "2017.??.??"]
[EventType "swiss"]
[EventCountry "GCI"]
[SourceTitle "playchess.com"]
[Source "ChessBase"]
[SourceQuality "1"]
[TimeControl "40/6000+30:2400+30"]

{[%evp 9,54,34,42,32,30,26,33,13,24,34,15,-28,-2,0,0,0,37,9,19,-104,-110,-147,-162,-167,-170,-183,-229,-233,-68,-91,-56,0,-17,-23,279,299,301,325,319,335,458,430,401,344,488,-29998,-29999]} 1. e4 {[%emt 0:00:00]} e5 {[%emt 0:00:04]} 2. Nf3 {[%emt 0:00:00]} d6 {[%emt 0:00:04]} 3. d4 {[%emt 0:00:09]} exd4 {[%emt 0:00:05]} 4. Nxd4 {[%emt 0:00:12]} Nf6 {[%emt 0:00:06]} 5. Nc3 {[%emt 0:00:25]} Be7 {[%emt 0:00:05]} 6. Be2 {[%emt 0:04:44]} O-O {[%emt 0:03:36]} 7. O-O {[%emt 0:00:15]} Re8 {[%emt 0:00:26]} 8. f4 {[%emt 0:04:02]} Bf8 {[%emt 0:02:14]} 9. Bf3 {[%emt 0:00:12] LiveBook: 211 Games} c5 {[%emt 0:00:11]} 10. Nf5 {[%emt 0:02:01] C41: Philidor Defence} (10. Nde2 Nc6 11. f5 Ne5 12. Nf4 Bd7 13. Nfd5 Nxd5 14. Nxd5 Bc6 15. Bf4 b5 16. b3 a5 17. Qd2 a4 {1-0 (40) Sokolov,A (2520)-Naiditsch,A (2720) Montpellier 2015}) 10... Bxf5 {[%emt 0:00:09]} 11. exf5 {[%emt 0:00:20]} Nc6 {[%emt 0:00:09]} 12. g4 {[%emt 0:05:14]} Nd4 $146 {[%emt 0:14:33]} ({Predecessor:} 12... d5 13. g5 d4 14. gxf6 dxc3 15. Qxd8 Raxd8 16. bxc3 c4 17. fxg7 Bc5+ 18. Kg2 Kxg7 19. a4 Kf6 20. a5 {½-½ (20) Colonna,M (2150)-Dicicco,D (2024) Grosseto 2009}) 13. Bxb7 {[%emt 0:02:53]} Rb8 {[%emt 0:00:06]} 14. Ba6 {[%emt 0:13:54]} (14. Bg2 $11) 14... d5 {[%emt 0:05:49]} 15. Ne2 {[%emt 0:14:59]} Qb6 {[%emt 0:03:21]} 16. Nxd4 {[%emt 0:21:32]} Qxa6 {[%emt 0:03:37]} 17. Nb3 {[%emt 0:10:15]} Re2 {[%emt 0:20:42]} 18. g5 {[%emt 0:01:26]} Ng4 {[%emt 0:00:38]} ({Better is} 18... Rbe8 $19 19. Bd2 (19. gxf6 $2 Qxf6 20. Qd3 c4 $19) 19... Ng4) 19. h3 {[%emt 0:03:22]} Nh2 {[%emt 0:02:40]} 20. Rf2 {[%emt 0:01:08]} Rbe8 {[%emt 0:00:27]} 21. Bd2 $1 {[%emt 0:02:07]} Qc4 $2 {[%emt 0:06:06]} (21... Rxf2 $15 {keeps the upper hand.} 22. Kxf2 Bd6) 22. Rxh2 {[%emt 0:03:39]} Rxh2 {[%emt 0:00:54]} 23. Kxh2 {[%emt 0:00:11]} Re2+ {[%emt 0:00:04]} 24. Kg3 {[%emt 0:04:02]} Bd6 {[%emt 0:03:29]} 25. Qf1 {[%emt 0:00:34]} Qe4 {[%emt 0:03:55]} 26. Qf3 {[%emt 0:03:33]} Qe7 {[%emt 0:00:33]} (26... c4 $142) 27. Qxd5 {[%emt 0:01:39]} (27. f6 $18 Qe6 28. Rd1) 27... Qxg5+ $1 {[%emt 0:00:12]} 1/2-1/2